fUSD/lending_fUSD_20241227
["ID","MTS","AMOUNT","RATE_DAILY","PERIOD"]
[346848699,1735324238873,-740.4,0.00010479,2]
[346848701,1735324238882,-565.09,0.00010479,2]
[346848703,1735324238892,-2566.28,0.00010479,2]
[346848705,1735324238900,-500.0,0.00010479,2]
[346848707,1735324238910,-500.0,0.00010479,2]
[346848709,1735324238919,-527.29,0.00010479,2]
[346848711,1735324238928,-903.93,0.00010479,2]
[346848713,1735324238937,-1334.19,0.00010479,2]
[346848715,1735324238947,-16.49510712,0.00010479,2]
[346848722,1735324239009,-582.27999921,0.00010478,2]
[346848724,1735324239021,-633.004498,0.00010478,2]
[346848728,1735324239050,-14935.85199795,0.00010478,2]
[346848804,1735324239779,-439.04500007,0.00010478,2]
[346848806,1735324239790,-3842.98527573,0.00010478,2]
[346848809,1735324239813,-29566.83322904,0.00010478,2]
[346848811,1735324239823,-483.50489288,0.00010479,2]
[346848812,1735324239832,-500.0,0.00010479,2]
[346848813,1735324239841,-624.22,0.00010479,2]
[346848814,1735324239850,-500.0,0.00010479,2]
[346848815,1735324239859,-1440.26,0.00010479,2]
[346848816,1735324239868,-829.1,0.00010479,2]
[346848817,1735324239878,-500.0,0.00010479,2]
[346848818,1735324239887,-1424.6,0.00010479,2]
[346848819,1735324239896,-993.77,0.00010479,2]
[346848820,1735324239905,-916.94,0.00010479,2]
[346848821,1735324239914,-725.25,0.00010479,2]
[346848822,1735324239924,-500.0,0.00010479,2]
[346848823,1735324239932,-505.72,0.00010479,2]
[346848825,1735324239942,-2689.58,0.00010479,2]
[346848827,1735324239953,-1163.16,0.00010479,2]
[346848829,1735324239963,-1323.23,0.00010479,2]
[346848831,1735324239972,-1007.96,0.00010479,2]
[346848833,1735324239982,-1808.95,0.00010479,2]
[346848835,1735324239991,-2442.97,0.00010479,2]
[346848837,1735324240001,-921.38,0.00010479,2]
[346848840,1735324240016,-935.93,0.00010479,2]
[346848842,1735324240032,-500.0,0.00010479,2]
[346848845,1735324240042,-1028.63,0.00010479,2]
[346848847,1735324240052,-578.18,0.00010479,2]
[346848849,1735324240062,-1466.78,0.00010479,2]
[346848850,1735324240072,-507.22,0.00010479,2]
[346848852,1735324240082,-896.01,0.00010479,2]
[346848854,1735324240091,-856.69,0.00010479,2]
[346848856,1735324240101,-1693.31,0.00010479,2]
[346848859,1735324240111,-500.0,0.00010479,2]
[346848861,1735324240121,-5605.05,0.00010479,2]
[346848863,1735324240131,-727.46,0.00010479,2]
[346848865,1735324240141,-1394.43,0.00010479,2]
[346848867,1735324240151,-500.0,0.00010479,2]
[346848869,1735324240162,-889.92,0.00010479,2]
[346848870,1735324240171,-1182.17,0.00010479,2]
[346848873,1735324240182,-1193.73,0.00010479,2]
[346848875,1735324240192,-3941.77,0.00010479,2]
[346848877,1735324240202,-500.0,0.00010479,2]
[346848879,1735324240211,-1306.03,0.00010479,2]
[346848881,1735324240220,-1070.820665,0.00010479,2]
[346848883,1735324240230,-872.98624,0.00010479,2]
[346848885,1735324240240,-756.07,0.00010479,2]
[346848887,1735324240250,-500.0,0.00010479,2]
[346848889,1735324240261,-3311.29,0.00010479,2]
[346848891,1735324240270,-5176.05,0.00010479,2]
[346848893,1735324240283,-500.0,0.00010479,2]
[346848895,1735324240292,-1213.81,0.00010479,2]
[346848897,1735324240301,-8468.82,0.00010479,2]
[346848899,1735324240311,-1319.56,0.00010479,2]
[346848901,1735324240321,-500.0,0.00010479,2]
[346848903,1735324240331,-862.51,0.00010479,2]
[346848905,1735324240341,-985.3,0.00010479,2]
[346848907,1735324240351,-500.0,0.00010479,2]
[346848909,1735324240361,-2375.91,0.00010479,2]
[346848911,1735324240370,-1809.49,0.00010479,2]
[346848913,1735324240380,-673.67,0.00010479,2]
[346848915,1735324240390,-500.0,0.00010479,2]
[346848917,1735324240399,-1265.29,0.00010479,2]
[346848919,1735324240409,-351.63695495,0.00010479,2]
[346848921,1735324240419,-1604.76,0.00010479,2]
[346848922,1735324240428,-849.94,0.00010479,2]
[346848925,1735324240438,-8390.94,0.00010479,2]
[346848926,1735324240448,-785.67,0.00010479,2]
[346848928,1735324240457,-1058.31,0.00010479,2]
[346848930,1735324240468,-1442.74,0.00010479,2]
[346848932,1735324240478,-900.35,0.00010479,2]
[346848934,1735324240489,-500.0,0.00010479,2]
[346848936,1735324240499,-645.42,0.00010479,2]
[346848937,1735324240509,-500.0,0.00010479,2]
[346848938,1735324240519,-1645.87,0.00010479,2]
[346848939,1735324240532,-515.64,0.0001048,2]
[346848940,1735324240542,-3135355.84196343,0.0001048,2]
[346848960,1735324241189,-56195.52812764,0.0001048,2]
[346848961,1735324241229,-199.89833598,0.0001048,2]
[346848962,1735324241262,-975.0734021,0.0001048,2]
[346848963,1735324241273,-3033.49090866,0.0001048,2]
[346848964,1735324241303,-9513.42358776,0.0001048,2]
[346848965,1735324242763,-978.49414827,0.00010379,2]
[346848966,1735324242773,-500.0,0.00010478,2]
[346848967,1735324242783,-1468.68,0.00010479,2]
[346848968,1735324242793,-64.67718779,0.00010479,2]
[346848969,1735324242804,-802.20385,0.00010479,2]
[346848970,1735324242815,-498.36896221,0.00010479,2]
[346848971,1735324242824,-8968.63103779,0.0001048,2]
[346848994,1735324245881,-500.0,0.00010478,2]
[346848995,1735324245891,-2577.51,0.00010478,2]
[346848996,1735324245901,-185.31,0.00010478,2]
[346848997,1735324245910,-1132.31,0.00010479,2]
[346848998,1735324245919,-347.18464162,0.0001048,2]
[346848999,1735324245942,-4935.05920496,0.0001048,2]
[346849000,1735324245955,-3171.48819,0.0001048,2]
[346849001,1735324245967,-2213.41157521,0.0001048,2]
[346849002,1735324245977,-1686.0654,0.0001048,2]
[346849003,1735324246130,-561511.75147246,0.0001048,2]
[346849004,1735324518118,5000.0,0.0002,120]
[346849005,1735324586496,250.0,9.446e-05,2]
[346849006,1735324637278,728.25,9.424e-05,2]
[346849007,1735324776350,1500.0,9.439e-05,2]
[346849008,1735324817974,608.68,8.219e-05,2]
[346849009,1735324913804,276.12,9.375e-05,2]
[346849010,1735324950824,1478451.40838509,9.691e-05,2]
[346849011,1735325105160,1000.0,9.404e-05,2]
[346849812,1735325431956,-150.0,9.973e-05,2]
[346849813,1735325431966,-2022.80579604,0.0001,2]
[346849837,1735325432483,-2507.99979296,0.0001,2]
[346849842,1735325432523,-1349.84479405,0.0001,2]
[346849844,1735325432535,-357.355385,0.0001,2]
[346849846,1735325432546,-20622.00602125,0.0001,2]
[346849848,1735325432555,-110.92286084,0.0001,2]
[346849850,1735325432567,-186.71906265,0.0001,2]
[346849853,1735325432577,-252.91,0.0001,2]
[346849854,1735325432586,-253.45,0.0001,2]
[346849856,1735325432596,-141.0262856,0.0001,2]
[346849859,1735325432607,-112.7837144,0.0001,2]
[346849861,1735325432616,-247.37,0.0001,2]
[346849863,1735325432626,-196.11299037,0.0001,2]
[346849865,1735325432637,-58.78700963,0.0001,2]
[346849867,1735325432646,-253.3,0.0001,2]
[346849869,1735325432655,-248.05,0.0001,2]
[346849871,1735325432665,-253.81,0.0001,2]
[346849873,1735325432674,-7.27951426,0.0001,2]
[346849878,1735325432715,-241.68048574,0.0001,2]
[346849880,1735325432725,-251.43,0.0001,2]
[346849882,1735325432734,-251.0,0.0001,2]
[346849884,1735325432744,-253.21,0.0001,2]
[346849886,1735325432753,-252.52,0.0001,2]
[346849888,1735325432762,-252.66,0.0001,2]
[346849890,1735325432773,-249.3,0.0001,2]
[346849892,1735325432782,-253.29,0.0001,2]
[346849894,1735325432790,-245.57,0.0001,2]
[346849896,1735325432800,-248.46,0.0001,2]
[346849898,1735325432810,-249.22,0.00010067,2]
[346849900,1735325432819,-253.37,0.00010067,2]
[346849902,1735325432829,-252.13,0.00010068,2]
[346849904,1735325432838,-251.04,0.00010068,2]
[346849906,1735325432847,-253.21,0.00010069,2]
[346849907,1735325432857,-511.086,0.0001007,2]
[346849909,1735325432866,-246.65,0.00010071,2]
[346849911,1735325432875,-246.22,0.00010074,2]
[346849913,1735325432885,-250.24,0.00010081,2]
[346849915,1735325432894,-247.07,0.00010095,2]
[346849917,1735325432904,-151.0,0.000101,2]
[346849919,1735325432913,-254.99,0.00010122,2]
[346849920,1735325432923,-167.64,0.00010137,2]
[346849921,1735325432932,-248.27,0.00010178,2]
[346849922,1735325432942,-251.8,0.00010287,2]
[346849923,1735325432951,-596.831,0.00010373,2]
[346849924,1735325432961,-1873.8991,0.00010376,2]
[346849925,1735325432970,-3145.4369,0.00010377,2]
[346849926,1735325432979,-217.68148574,0.00010377,2]
[346849927,1735325432988,-8079.50502847,0.00010378,2]
[346849934,1735325437839,-474.22,0.00010378,2]
[346849935,1735325437851,-588.40408422,0.00010378,2]
[346849936,1735325438082,-467.05,0.00010378,2]
[346849937,1735325438094,-636.12226556,0.00010378,2]
[346849938,1735325438135,-463.4202856,0.00010378,2]
[346850112,1735325439929,-250.32835436,0.00010378,2]
[346850115,1735325439942,-400.05913835,0.00010378,2]
[346850117,1735325439953,-12165.44313694,0.00010378,2]
[346850119,1735325439965,-1091.88000006,0.00010378,2]
[346850121,1735325439976,-30938.56770644,0.00010378,2]
[346850123,1735325439986,-68444.0954,0.0001038,2]
[346850125,1735325439995,-176.92316019,0.0001038,2]
[346850127,1735325440004,-252.81481147,0.0001038,2]
[346850129,1735325440014,-161.07221604,0.000104,2]
[346850131,1735325440023,-512.52,0.000104,2]
[346850133,1735325440034,-770.7,0.000104,2]
[346850135,1735325440043,-437.31,0.000104,2]
[346850137,1735325440052,-437.31,0.000104,2]
[346850139,1735325440062,-608.68,0.00010445,2]
[346850141,1735325440071,-176.34032037,0.00010473,2]
[346850143,1735325440081,-500.0,0.00010473,2]
[346850145,1735325440090,-500.31613982,0.00010473,2]
[346850147,1735325440100,-500.0,0.00010473,2]
[346850149,1735325440110,-160.48378334,0.00010473,2]
[346850151,1735325440120,-151.18003901,0.00010473,2]
[346850153,1735325440129,-500.0,0.00010473,2]
[346850155,1735325440139,-352.98418647,0.00010473,2]
[346850157,1735325440149,-500.0,0.00010475,2]
[346850159,1735325440160,-500.0,0.00010475,2]
[346850161,1735325440169,-993.08,0.00010475,2]
[346850163,1735325440179,-500.0,0.00010475,2]
[346850165,1735325440188,-500.0,0.00010475,2]
[346850167,1735325440198,-857.65,0.00010475,2]
[346850169,1735325440207,-500.0,0.00010475,2]
[346850171,1735325440216,-610.5,0.00010475,2]
[346850173,1735325440225,-500.0,0.00010475,2]
[346850175,1735325440234,-500.0,0.00010476,2]
[346850177,1735325440243,-500.0,0.00010476,2]
[346850179,1735325440252,-500.0,0.00010476,2]
[346850181,1735325440261,-500.0,0.00010476,2]
[346850183,1735325440271,-500.0,0.00010476,2]
[346850184,1735325440282,-500.0,0.00010476,2]
[346850187,1735325440294,-500.0,0.00010476,2]
[346850188,1735325440304,-500.0,0.00010476,2]
[346850191,1735325440313,-500.0,0.00010476,2]
[346850192,1735325440326,-523.43,0.00010476,2]
[346850194,1735325440336,-279.08365606,0.00010476,2]
[346850197,1735325440346,-500.0,0.00010476,2]
[346850198,1735325440355,-500.0,0.00010476,2]
[346850200,1735325440365,-500.0,0.00010476,2]
[346850203,1735325440375,-500.0,0.00010476,2]
[346850205,1735325440385,-500.0,0.00010476,2]
[346850206,1735325440395,-500.0,0.00010476,2]
[346850208,1735325440406,-512.57356148,0.00010476,2]
[346850210,1735325440417,-516.32,0.00010476,2]
[346850212,1735325440427,-510.34,0.00010476,2]
[346850214,1735325440438,-500.0,0.00010476,2]
[346850216,1735325440447,-500.0,0.00010476,2]
[346850218,1735325440457,-500.0,0.00010476,2]
[346850220,1735325440466,-500.0,0.00010476,2]
[346850222,1735325440476,-500.0,0.00010476,2]
[346850224,1735325440484,-512.71,0.00010476,2]
[346850226,1735325440493,-500.0,0.00010476,2]
[346850228,1735325440503,-500.0,0.00010476,2]
[346850230,1735325440512,-384031.4794878,0.00010476,2]
[346850232,1735325440521,-500.0,0.00010476,2]
[346850234,1735325440531,-500.0,0.00010476,2]
[346850236,1735325440541,-500.0,0.00010476,2]
[346850238,1735325440551,-521.82,0.00010476,2]
[346850239,1735325440561,-500.0,0.00010476,2]
[346850240,1735325440570,-436.66909127,0.00010476,2]
[346850241,1735325440580,-495.59,0.00010476,2]
[346850242,1735325440589,-500.0,0.00010476,2]
[346850243,1735325440599,-500.0,0.00010476,2]
[346850244,1735325440608,-500.0,0.00010476,2]
[346850245,1735325440618,-500.0,0.00010476,2]
[346850246,1735325440628,-500.0,0.00010476,2]
[346850247,1735325440637,-500.0,0.00010476,2]
[346850248,1735325440647,-500.0,0.00010476,2]
[346850249,1735325440656,-500.0,0.00010476,2]
[346850250,1735325440666,-612.87,0.00010476,2]
[346850251,1735325440675,-500.0,0.00010476,2]
[346850252,1735325440684,-500.0,0.00010476,2]
[346850253,1735325440694,-500.0,0.00010476,2]
[346850254,1735325440703,-500.0,0.00010476,2]
[346850255,1735325440712,-500.0,0.00010476,2]
[346850256,1735325440722,-500.0,0.00010476,2]
[346850257,1735325440731,-500.0,0.00010476,2]
[346850258,1735325440741,-517.29,0.00010476,2]
[346850259,1735325440750,-500.0,0.00010476,2]
[346850260,1735325440759,-500.0,0.00010476,2]
[346850261,1735325440768,-500.0,0.00010476,2]
[346850262,1735325440778,-500.0,0.00010476,2]
[346850263,1735325440787,-500.0,0.00010476,2]
[346850264,1735325440796,-500.0,0.00010476,2]
[346850265,1735325440807,-500.0,0.00010476,2]
[346850266,1735325440816,-500.0,0.00010476,2]
[346850267,1735325440826,-500.0,0.00010476,2]
[346850268,1735325440836,-500.0,0.00010476,2]
[346850269,1735325440846,-500.0,0.00010476,2]
[346850270,1735325440856,-500.0,0.00010476,2]
[346850271,1735325440869,-500.0,0.00010476,2]
[346850272,1735325440881,-500.0,0.00010476,2]
[346850273,1735325440894,-500.0,0.00010476,2]
[346850274,1735325440906,-500.0,0.00010476,2]
[346850275,1735325440917,-500.0,0.00010476,2]
[346850276,1735325440928,-500.0,0.00010476,2]
[346850277,1735325440940,-500.0,0.00010476,2]
[346850278,1735325440952,-500.0,0.00010476,2]
[346850279,1735325440964,-500.0,0.00010476,2]
[346850280,1735325440975,-500.0,0.00010476,2]
[346850281,1735325440989,-500.0,0.00010476,2]
[346850282,1735325441001,-586.48,0.00010476,2]
[346850283,1735325441013,-500.0,0.00010476,2]
[346850284,1735325441025,-500.0,0.00010476,2]
[346850285,1735325441036,-207.70703582,0.00010476,2]
[346850286,1735325441047,-500.0,0.00010476,2]
[346850287,1735325441059,-643.08,0.00010476,2]
[346850288,1735325441070,-500.0,0.00010476,2]
[346850289,1735325441083,-621.52155946,0.00010476,2]
[346850290,1735325441095,-500.0,0.00010476,2]
[346850291,1735325441107,-500.0,0.00010476,2]
[346850292,1735325441119,-500.0,0.00010476,2]
[346850293,1735325441131,-500.0,0.00010476,2]
[346850294,1735325441147,-500.0,0.00010476,2]
[346850295,1735325441159,-500.0,0.00010476,2]
[346850296,1735325441171,-500.0,0.00010476,2]
[346850297,1735325441182,-500.0,0.00010476,2]
[346850298,1735325441195,-500.0,0.00010476,2]
[346850299,1735325441207,-500.0,0.00010476,2]
[346850300,1735325441220,-500.0,0.00010476,2]
[346850301,1735325441231,-500.0,0.00010476,2]
[346850302,1735325441244,-500.0,0.00010476,2]
[346850303,1735325441255,-500.0,0.00010476,2]
[346850304,1735325441268,-589.21,0.00010476,2]
[346850305,1735325441281,-500.0,0.00010476,2]
[346850306,1735325441294,-500.0,0.00010476,2]
[346850307,1735325441305,-596.44,0.00010476,2]
[346850308,1735325441316,-500.0,0.00010476,2]
[346850309,1735325441327,-7418.54,0.00010476,2]
[346850310,1735325441337,-500.0,0.00010476,2]
[346850311,1735325441348,-500.0,0.00010476,2]
[346850312,1735325441363,-500.0,0.00010476,2]
[346850313,1735325441375,-1931.04,0.00010476,2]
[346850314,1735325441389,-583.89,0.00010476,2]
[346850315,1735325441399,-500.0,0.00010476,2]
[346850316,1735325441409,-500.0,0.00010476,2]
[346850317,1735325441419,-500.0,0.00010476,2]
[346850318,1735325441430,-500.0,0.00010476,2]
[346850319,1735325441441,-500.0,0.00010476,2]
[346850320,1735325441454,-1390.08,0.00010476,2]
[346850321,1735325441466,-500.0,0.00010476,2]
[346850322,1735325441477,-500.0,0.00010476,2]
[346850323,1735325441488,-500.0,0.00010476,2]
[346850324,1735325441499,-500.0,0.00010476,2]
[346850325,1735325441509,-500.0,0.00010476,2]
[346850326,1735325441520,-500.0,0.00010476,2]
[346850328,1735325441531,-1641.62,0.00010476,2]
[346850330,1735325441541,-500.0,0.00010476,2]
[346850331,1735325441552,-500.0,0.00010476,2]
[346850332,1735325441564,-500.0,0.00010476,2]
[346850333,1735325441575,-500.0,0.00010476,2]
[346850334,1735325441590,-500.0,0.00010476,2]
[346850335,1735325441601,-500.0,0.00010476,2]
[346850336,1735325441612,-500.0,0.00010476,2]
[346850337,1735325441623,-2690.8,0.00010476,2]
[346850338,1735325441634,-500.0,0.00010476,2]
[346850339,1735325441645,-500.0,0.00010476,2]
[346850340,1735325441656,-500.0,0.00010476,2]
[346850341,1735325441667,-500.0,0.00010476,2]
[346850342,1735325441678,-500.0,0.00010476,2]
[346850343,1735325441689,-500.0,0.00010476,2]
[346850344,1735325441699,-500.0,0.00010476,2]
[346850345,1735325441710,-500.0,0.00010476,2]
[346850346,1735325441721,-572.18,0.00010476,2]
[346850347,1735325441732,-500.0,0.00010476,2]
[346850348,1735325441743,-500.0,0.00010476,2]
[346850349,1735325441754,-500.0,0.00010476,2]
[346850350,1735325441764,-541.98090057,0.00010476,2]
[346850351,1735325441776,-500.0,0.00010476,2]
[346850352,1735325441790,-361.67778235,0.00010476,2]
[346850353,1735325441801,-1027.39,0.00010476,2]
[346850354,1735325441813,-738.19,0.00010476,2]
[346850355,1735325441825,-500.0,0.00010476,2]
[346850356,1735325441836,-500.0,0.00010476,2]
[346850357,1735325441847,-898.01,0.00010476,2]
[346850358,1735325441858,-500.0,0.00010476,2]
[346850359,1735325441869,-531.65,0.00010476,2]
[346850360,1735325441881,-500.0,0.00010476,2]
[346850361,1735325441892,-561.15,0.00010476,2]
[346850362,1735325441903,-501.67642416,0.00010476,2]
[346850363,1735325441914,-500.0,0.00010476,2]
[346850364,1735325441926,-500.0,0.00010476,2]
[346850365,1735325441937,-500.0,0.00010476,2]
[346850366,1735325441948,-429.26101013,0.00010476,2]
[346850367,1735325441959,-553.0,0.00010476,2]
[346850368,1735325441969,-464.57758625,0.00010476,2]
[346850369,1735325441980,-500.0,0.00010476,2]
[346850370,1735325441991,-500.0,0.00010476,2]
[346850371,1735325442002,-500.0,0.00010476,2]
[346850372,1735325442013,-500.0,0.00010476,2]
[346850373,1735325442024,-500.0,0.00010476,2]
[346850374,1735325442036,-500.0,0.00010476,2]
[346850375,1735325442047,-500.0,0.00010476,2]
[346850376,1735325442058,-500.0,0.00010476,2]
[346850377,1735325442071,-500.0,0.00010476,2]
[346850378,1735325442081,-695.03,0.00010476,2]
[346850379,1735325442092,-500.0,0.00010476,2]
[346850380,1735325442104,-500.0,0.00010476,2]
[346850381,1735325442115,-500.0,0.00010477,2]
[346850382,1735325442126,-736.16,0.00010477,2]
[346850383,1735325442137,-500.0,0.00010477,2]
[346850384,1735325442148,-500.0,0.00010477,2]
[346850385,1735325442159,-500.0,0.00010477,2]
[346850386,1735325442171,-523.78,0.00010477,2]
[346850387,1735325442182,-500.0,0.00010477,2]
[346850388,1735325442193,-863.39,0.00010477,2]
[346850389,1735325442204,-625.87,0.00010477,2]
[346850390,1735325442215,-707.56,0.00010477,2]
[346850391,1735325442226,-810.58,0.00010477,2]
[346850392,1735325442238,-554.55,0.00010477,2]
[346850393,1735325442249,-500.0,0.00010477,2]
[346850394,1735325442260,-500.0,0.00010477,2]
[346850395,1735325442271,-500.0,0.00010477,2]
[346850396,1735325442285,-500.0,0.00010477,2]
[346850397,1735325442296,-500.0,0.00010477,2]
[346850398,1735325442307,-500.0,0.00010477,2]
[346850399,1735325442318,-500.0,0.00010477,2]
[346850400,1735325442330,-500.0,0.00010477,2]
[346850401,1735325442341,-781.43,0.00010477,2]
[346850402,1735325442352,-500.0,0.00010477,2]
[346850403,1735325442363,-500.0,0.00010477,2]
[346850404,1735325442375,-815.53,0.00010477,2]
[346850405,1735325442386,-500.0,0.00010477,2]
[346850406,1735325442397,-500.0,0.00010477,2]
[346850407,1735325442409,-500.0,0.00010477,2]
[346850408,1735325442420,-500.0,0.00010477,2]
[346850409,1735325442431,-929.12,0.00010477,2]
[346850410,1735325442443,-838.82,0.00010477,2]
[346850411,1735325442455,-500.0,0.00010477,2]
[346850412,1735325442466,-500.0,0.00010477,2]
[346850413,1735325442478,-500.0,0.00010477,2]
[346850414,1735325442489,-500.0,0.00010477,2]
[346850415,1735325442500,-500.0,0.00010477,2]
[346850416,1735325442512,-500.0,0.00010477,2]
[346850417,1735325442523,-500.0,0.00010477,2]
[346850418,1735325442534,-500.0,0.00010477,2]
[346850419,1735325442546,-647.69382681,0.00010477,2]
[346850420,1735325442557,-500.0,0.00010477,2]
[346850421,1735325442568,-500.0,0.00010477,2]
[346850422,1735325442580,-526.09,0.00010477,2]
[346850423,1735325442591,-500.0,0.00010477,2]
[346850424,1735325442602,-1081.02,0.00010477,2]
[346850425,1735325442613,-500.0,0.00010477,2]
[346850426,1735325442624,-498.24599728,0.00010477,2]
[346850427,1735325442635,-666.1,0.00010477,2]
[346850428,1735325442647,-500.0,0.00010477,2]
[346850429,1735325442657,-500.0,0.00010477,2]
[346850430,1735325442668,-1084.05,0.00010477,2]
[346850431,1735325442680,-712.76,0.00010477,2]
[346850432,1735325442691,-500.0,0.00010477,2]
[346850433,1735325442702,-500.0,0.00010477,2]
[346850434,1735325442713,-920.53,0.00010477,2]
[346850436,1735325442723,-1350.28,0.00010477,2]
[346850438,1735325442735,-501.98,0.00010477,2]
[346850439,1735325442746,-794.42,0.00010477,2]
[346850441,1735325442757,-500.0,0.00010477,2]
[346850442,1735325442768,-500.0,0.00010477,2]
[346850443,1735325442779,-500.0,0.00010477,2]
[346850444,1735325442790,-500.0,0.00010477,2]
[346850445,1735325442802,-537.22,0.00010477,2]
[346850446,1735325442813,-500.0,0.00010477,2]
[346850447,1735325442824,-500.0,0.00010477,2]
[346850448,1735325442835,-500.0,0.00010477,2]
[346850452,1735325442846,-1298.95,0.00010477,2]
[346850453,1735325442858,-500.0,0.00010477,2]
[346850454,1735325442868,-620.64,0.00010477,2]
[346850455,1735325442879,-500.0,0.00010477,2]
[346850458,1735325442890,-792.89,0.00010477,2]
[346850460,1735325442901,-500.0,0.00010477,2]
[346850462,1735325442912,-500.0,0.00010477,2]
[346850463,1735325442923,-588.66,0.00010477,2]
[346850464,1735325442934,-500.0,0.00010477,2]
[346850465,1735325442945,-895462.0,0.00010477,2]
[346850466,1735325442956,-949.6,0.00010477,2]
[346850467,1735325442966,-500.57,0.00010477,2]
[346850468,1735325442977,-500.0,0.00010477,2]
[346850469,1735325442988,-681.54,0.00010477,2]
[346850470,1735325442999,-625.77,0.00010477,2]
[346850471,1735325443011,-877.89,0.00010477,2]
[346850472,1735325443022,-2417.86,0.00010477,2]
[346850473,1735325443034,-1217.79,0.00010477,2]
[346850474,1735325443045,-2598.55,0.00010477,2]
[346850475,1735325443056,-932.86,0.00010477,2]
[346850476,1735325443067,-500.0,0.00010477,2]
[346850477,1735325443078,-570.57,0.00010477,2]
[346850478,1735325443089,-1351.43,0.00010477,2]
[346850479,1735325443100,-504.79,0.00010477,2]
[346850480,1735325443111,-2048.24,0.00010477,2]
[346850481,1735325443122,-1114.7,0.00010477,2]
[346850482,1735325443133,-5675.49,0.00010477,2]
[346850483,1735325443144,-1881.17,0.00010477,2]
[346850484,1735325443156,-3462.73,0.00010477,2]
[346850485,1735325443166,-554.09,0.00010477,2]
[346850486,1735325443177,-966.33,0.00010477,2]
[346850487,1735325443188,-500.0,0.00010477,2]
[346850488,1735325443198,-1069.1,0.00010477,2]
[346850489,1735325443209,-904.33,0.00010477,2]
[346850490,1735325443220,-1489.0,0.00010477,2]
[346850491,1735325443231,-1002.97,0.00010477,2]
[346850492,1735325443242,-1419.66,0.00010477,2]
[346850493,1735325443252,-3272.43,0.00010477,2]
[346850494,1735325443263,-500.0,0.00010477,2]
[346850495,1735325443274,-500.0,0.00010477,2]
[346850496,1735325443287,-500.0,0.00010477,2]
[346850497,1735325443298,-546.3,0.00010477,2]
[346850498,1735325443308,-657.34,0.00010477,2]
[346850499,1735325443319,-937.93,0.00010477,2]
[346850500,1735325443332,-500.0,0.00010477,2]
[346850501,1735325443343,-909.9,0.00010477,2]
[346850502,1735325443353,-3270.44,0.00010477,2]
[346850503,1735325443365,-500.0,0.00010477,2]
[346850504,1735325443376,-2537.8,0.00010477,2]
[346850505,1735325443386,-755.27,0.00010477,2]
[346850506,1735325443396,-500.0,0.00010477,2]
[346850507,1735325443407,-5323.24,0.00010477,2]
[346850508,1735325443417,-1334.94,0.00010477,2]
[346850509,1735325443428,-807.9,0.00010477,2]
[346850510,1735325443439,-178.37741428,0.00010477,2]
[346850511,1735325443451,-1347.92,0.00010477,2]
[346850512,1735325443462,-946.16,0.00010477,2]
[346850513,1735325443473,-1246.57,0.00010477,2]
[346850514,1735325443483,-500.0,0.00010477,2]